lending/lending_fUSD_20260220
["ID","MTS","AMOUNT","RATE_DAILY","PERIOD"]
[406015390,1771557033620,-500.0,9.188e-05,2]
[406015391,1771557033630,-500.0,9.188e-05,2]
[406015392,1771557033639,-500.0,9.188e-05,2]
[406015393,1771557033648,-618.05232751,9.188e-05,2]
[406015394,1771557033658,-201.95393858,9.188e-05,2]
[406015395,1771557033667,-500.0,9.188e-05,2]
[406015396,1771557033677,-500.0,9.188e-05,2]
[406015397,1771557033686,-605.71,9.189e-05,2]
[406015398,1771557033696,-500.0,9.242e-05,2]
[406015399,1771557033706,-500.0,9.242e-05,2]
[406015400,1771557033716,-500.0,9.242e-05,2]
[406015401,1771557033725,-669.0,9.242e-05,2]
[406015402,1771557033736,-964.0,9.242e-05,2]
[406015403,1771557033747,-407.42321636,9.242e-05,2]
[406015404,1771557033758,-500.0,9.242e-05,2]
[406015405,1771557033768,-433.0,9.242e-05,2]
[406015406,1771557033778,-500.0,9.242e-05,2]
[406015407,1771557033787,-500.0,9.242e-05,2]
[406015408,1771557033796,-500.0,9.242e-05,2]
[406015409,1771557033805,-500.0,9.242e-05,2]
[406015410,1771557033814,-151.0,9.262e-05,2]
[406015411,1771557033823,-605.71,9.262e-05,2]
[406015412,1771557033833,-151.0,9.297e-05,2]
[406015413,1771557033842,-151.0,9.297e-05,2]
[406015414,1771557033852,-500.0,9.297e-05,2]
[406015415,1771557033862,-500.0,9.297e-05,2]
[406015416,1771557033871,-500.0,9.297e-05,2]
[406015417,1771557033881,-669.0,9.297e-05,2]
[406015418,1771557033890,-964.0,9.297e-05,2]
[406015419,1771557033899,-500.0,9.297e-05,2]
[406015420,1771557033909,-433.0,9.297e-05,2]
[406015421,1771557033918,-500.0,9.297e-05,2]
[406015422,1771557033928,-500.0,9.297e-05,2]
[406015423,1771557033937,-500.0,9.297e-05,2]
[406015424,1771557033946,-500.0,9.297e-05,2]
[406015425,1771557033955,-605.71,9.336e-05,2]
[406015426,1771557033964,-177.96851596,9.349e-05,2]
[406015427,1771557033973,-500.0,9.352e-05,2]
[406015428,1771557033983,-500.0,9.352e-05,2]
[406015429,1771557033992,-500.0,9.352e-05,2]
[406015430,1771557034001,-669.0,9.352e-05,2]
[406015431,1771557034009,-964.0,9.352e-05,2]
[406015432,1771557034019,-433.0,9.352e-05,2]
[406015433,1771557034027,-500.0,9.352e-05,2]
[406015434,1771557034036,-500.0,9.352e-05,2]
[406015435,1771557034045,-500.0,9.352e-05,2]
[406015436,1771557034054,-500.0,9.352e-05,2]
[406015437,1771557034063,-500.0,9.352e-05,2]
[406015438,1771557034072,-481.413592,9.352e-05,2]
[406015439,1771557034081,-481.413592,9.352e-05,2]
[406015440,1771557034091,-481.413592,9.352e-05,2]
[406015441,1771557034100,-481.413592,9.352e-05,2]
[406015442,1771557034109,-151.0,9.352e-05,2]
[406015443,1771557034119,-151.0,9.352e-05,2]
[406015444,1771557034127,-151.0,9.352e-05,2]
[406015445,1771557034138,-233.376348,9.352e-05,2]
[406015446,1771557034505,-151.0,9.352e-05,2]
[406015447,1771557034515,-151.0,9.352e-05,2]
[406015448,1771557034525,-166.77,9.388e-05,2]
[406015449,1771557034535,-250.0,9.395e-05,2]
[406015450,1771557034546,-250.0,9.395e-05,2]
[406015451,1771557034556,-251.83225457,9.395e-05,2]
[406015452,1771557034566,-1026.61,9.399e-05,2]
[406015453,1771557034576,-269.65418664,9.407e-05,2]
[406015454,1771557034584,-500.0,9.407e-05,2]
[406015455,1771557034594,-491.67310387,9.407e-05,2]
[406015456,1771557034602,-669.0,9.407e-05,2]
[406015457,1771557034612,-964.0,9.407e-05,2]
[406015458,1771557034621,-433.0,9.407e-05,2]
[406015459,1771557034633,-501.05563556,9.407e-05,2]
[406015460,1771557034643,-465.22862921,9.407e-05,2]
[406015461,1771557034653,-500.0,9.407e-05,2]
[406015462,1771557034662,-500.0,9.407e-05,2]
[406015463,1771557034671,-500.0,9.407e-05,2]
[406015464,1771557034681,-1094.0,9.409e-05,2]
[406015465,1771557034690,-1428.38747117,9.437e-05,2]
[406015466,1771557034699,-250.0,9.437e-05,2]
[406015467,1771557034708,-250.0,9.437e-05,2]
[406015468,1771557034719,-270.79485214,9.437e-05,2]
[406015469,1771557034729,-250.0,9.437e-05,2]
[406015470,1771557034739,-500.0,9.437e-05,2]
[406015471,1771557034749,-693.3919763,9.437e-05,2]
[406015472,1771557034759,-200.0,9.437e-05,2]
[406015473,1771557034768,-250.0,9.437e-05,2]
[406015474,1771557034778,-500.0,9.437e-05,2]
[406015475,1771557034787,-203.2364122,9.437e-05,2]
[406015476,1771557034796,-500.0,9.437e-05,2]
[406015477,1771557034805,-500.0,9.437e-05,2]
[406015478,1771557034814,-500.0,9.437e-05,2]
[406015479,1771557034823,-500.0,9.437e-05,2]
[406015480,1771557034832,-500.0,9.437e-05,2]
[406015481,1771557034841,-500.0,9.437e-05,2]
[406015482,1771557034850,-528.61421067,9.437e-05,2]
[406015483,1771557034859,-250.0,9.437e-05,2]
[406015484,1771557034868,-250.0,9.437e-05,2]
[406015485,1771557034877,-250.0,9.437e-05,2]
[406015486,1771557034887,-250.0,9.437e-05,2]
[406015487,1771557034898,-250.0,9.437e-05,2]
[406015488,1771557034907,-250.0,9.437e-05,2]
[406015489,1771557034916,-250.0,9.437e-05,2]
[406015490,1771557034937,-250.0,9.437e-05,2]
[406015491,1771557034949,-250.0,9.437e-05,2]
[406015492,1771557034960,-250.0,9.437e-05,2]
[406015493,1771557034970,-250.0,9.437e-05,2]
[406015494,1771557034980,-151.0,9.438e-05,2]
[406015495,1771557034990,-500.0,9.462e-05,2]
[406015496,1771557035000,-669.0,9.462e-05,2]
[406015497,1771557035010,-964.0,9.462e-05,2]
[406015498,1771557035021,-433.0,9.462e-05,2]
[406015499,1771557035031,-500.0,9.462e-05,2]
[406015500,1771557035043,-500.0,9.462e-05,2]
[406015501,1771557035053,-500.0,9.462e-05,2]
[406015502,1771557035063,-500.0,9.462e-05,2]
[406015503,1771557035074,-151.0,9.462e-05,2]
[406015504,1771557035086,-151.0,9.462e-05,2]
[406015505,1771557035098,-389.0,9.481e-05,2]
[406015506,1771557035109,-719.04747942,9.492e-05,2]
[406015507,1771557035120,-500.0,9.516e-05,2]
[406015508,1771557035131,-669.0,9.516e-05,2]
[406015509,1771557035141,-964.0,9.516e-05,2]
[406015510,1771557035152,-433.0,9.516e-05,2]
[406015511,1771557035162,-500.0,9.516e-05,2]
[406015512,1771557035172,-500.0,9.516e-05,2]
[406015513,1771557035181,-506.63398207,9.516e-05,2]
[406015514,1771557035191,-2500.0,9.542e-05,2]
[406015515,1771557035200,-745.65223616,9.547e-05,2]
[406015516,1771557035209,-500.0,9.571e-05,2]
[406015517,1771557035218,-669.0,9.571e-05,2]
[406015518,1771557035227,-964.0,9.571e-05,2]
[406015519,1771557035237,-433.0,9.571e-05,2]
[406015520,1771557035247,-500.0,9.571e-05,2]
[406015521,1771557035265,-500.0,9.571e-05,2]
[406015522,1771557035276,-151.0,9.589e-05,2]
[406015523,1771557035285,-151.0,9.589e-05,2]
[406015524,1771557035299,-773.2413689,9.602e-05,2]
[406015525,1771557035308,-481.413592,9.616e-05,2]
[406015526,1771557035318,-481.413592,9.616e-05,2]
[406015527,1771557035327,-481.413592,9.616e-05,2]
[406015528,1771557035339,-481.413592,9.616e-05,2]
[406015529,1771557035361,-151.0,9.616e-05,2]
[406015530,1771557035379,-151.0,9.616e-05,2]
[406015531,1771557035390,-151.0,9.616e-05,2]
[406015532,1771557035401,-151.0,9.616e-05,2]
[406015533,1771557035412,-151.0,9.616e-05,2]
[406015534,1771557035422,-1000.0,9.616e-05,2]
[406015535,1771557035433,-436.0,9.626e-05,2]
[406015536,1771557035446,-669.0,9.626e-05,2]
[406015537,1771557035458,-964.0,9.626e-05,2]
[406015538,1771557035468,-433.0,9.626e-05,2]
[406015539,1771557035478,-500.0,9.626e-05,2]
[406015540,1771557035491,-389.59953855,9.626e-05,2]
[406015541,1771557035504,-151.0,9.626e-05,2]
[406015542,1771557035516,-801.85129955,9.657e-05,2]
[406015543,1771557035527,-1000.0,9.679e-05,2]
[406015544,1771557035539,-669.0,9.681e-05,2]
[406015545,1771557035548,-964.0,9.681e-05,2]
[406015546,1771557035560,-433.0,9.681e-05,2]
[406015547,1771557035573,-500.0,9.681e-05,2]
[406015548,1771557035582,-166.66,9.683e-05,2]
[406015549,1771557035594,-255.0,9.683e-05,2]
[406015550,1771557035606,-151.0,9.697e-05,2]
[406015551,1771557035617,-151.0,9.697e-05,2]
[406015552,1771557035628,-831.51979763,9.712e-05,2]
[406015553,1771557035639,-151.0,9.716e-05,2]
[406015554,1771557035648,-222.616575,9.716e-05,2]
[406015555,1771557035659,-151.0,9.716e-05,2]
[406015556,1771557035670,-151.0,9.716e-05,2]
[406015557,1771557035681,-481.413592,9.716e-05,2]
[406015558,1771557035691,-481.413592,9.716e-05,2]
[406015559,1771557035707,-481.413592,9.716e-05,2]
[406015560,1771557035719,-481.413592,9.716e-05,2]
[406015561,1771557035730,-151.0,9.716e-05,2]
[406015562,1771557035739,-151.0,9.716e-05,2]
[406015563,1771557035749,-151.0,9.716e-05,2]
[406015564,1771557035760,-151.0,9.716e-05,2]
[406015565,1771557035770,-151.0,9.716e-05,2]
[406015566,1771557035781,-67052.24869351,9.716e-05,2]
[406015567,1771557035791,-669.0,9.736e-05,2]
[406015568,1771557035801,-964.0,9.736e-05,2]
[406015569,1771557035812,-433.0,9.736e-05,2]
[406015570,1771557035822,-500.0,9.736e-05,2]
[406015571,1771557035832,-500.0,9.736e-05,2]
[406015572,1771557035842,-166.77,9.76e-05,2]
[406015573,1771557035853,-862.28603014,9.767e-05,2]
[406015574,1771557035863,-669.0,9.79e-05,2]
[406015575,1771557035873,-964.0,9.79e-05,2]
[406015576,1771557035883,-433.0,9.79e-05,2]
[406015577,1771557035893,-180.84540812,9.79e-05,2]
[406015578,1771557035905,-1695.5294293,9.806e-05,2]
[406015579,1771557035915,-1204.6913641,9.814e-05,3]
[406015580,1771557035924,-7011.6156856,9.815e-05,2]
[406015581,1771557035934,-894.19061326,9.822e-05,2]
[406015582,1771557035944,-2115.168,9.832e-05,2]
[406015583,1771557035954,-186.804,9.832e-05,2]
[406015584,1771557035964,-669.0,9.845e-05,2]
[406015585,1771557035973,-964.0,9.845e-05,2]
[406015586,1771557035983,-433.0,9.845e-05,2]
[406015587,1771557035993,-927.27566595,9.877e-05,2]
[406015588,1771557036003,-669.0,9.9e-05,2]
[406015589,1771557036013,-433.0,9.9e-05,2]
[406015590,1771557036023,-961.58486559,9.932e-05,2]
[406015591,1771557036032,-378.0,9.948e-05,2]
[406015592,1771557036042,-669.0,9.955e-05,2]
[406015593,1771557036051,-433.0,9.955e-05,2]
[406015594,1771557036060,-1481.23780761,9.985e-05,2]
[406015595,1771557036070,-200.0,9.985e-05,2]
[406015596,1771557036079,-997.16350561,9.987e-05,2]
[406015597,1771557036089,-211.0,9.989e-05,2]
[406015598,1771557036099,-166.66,9.992e-05,2]
[406015599,1771557036109,-1074.20916767,9.996e-05,2]
[406015600,1771557036118,-167.80749201,0.0001,2]
[406015601,1771557036128,-1000.0,0.0001,2]
[406015602,1771557036137,-151.0,0.0001,2]
[406015603,1771557036147,-151.0,0.0001,2]
[406015604,1771557036156,-2000.0,0.0001,2]
[406015605,1771557036166,-2000.0,0.0001,2]
[406015606,1771557036175,-2000.0,0.0001,2]
[406015607,1771557036185,-2000.0,0.0001,2]
[406015608,1771557036195,-2000.0,0.0001,2]
[406015609,1771557036204,-2000.0,0.0001,2]
[406015610,1771557036214,-481.413592,0.0001,2]
[406015611,1771557036223,-481.413592,0.0001,2]
[406015612,1771557036233,-481.413592,0.0001,2]
[406015613,1771557036242,-481.413592,0.0001,2]
[406015614,1771557036251,-151.0,0.0001,2]
[406015615,1771557036261,-151.0,0.0001,2]
[406015616,1771557036270,-151.0,0.0001,2]
[406015617,1771557036280,-151.0,0.0001,2]
[406015618,1771557036289,-151.0,0.0001,2]
[406015619,1771557036298,-151.0,0.0001,2]
[406015620,1771557036308,-151.0,0.0001,2]
[406015621,1771557036317,-151.0,0.0001,2]
[406015622,1771557036326,-151.0,0.0001,2]
[406015623,1771557036335,-151.0,0.0001,2]
[406015624,1771557036345,-151.0,0.0001,2]
[406015625,1771557036354,-151.0,0.0001,2]
[406015626,1771557036364,-151.0,0.0001,2]
[406015627,1771557036372,-151.0,0.0001,2]
[406015628,1771557036381,-151.0,0.0001,2]
[406015629,1771557036391,-151.0,0.0001,2]
[406015630,1771557036401,-151.0,0.0001,2]
[406015631,1771557036410,-187.0,0.00010007,2]
[406015632,1771557036419,-669.0,0.00010009,2]
[406015633,1771557036429,-433.0,0.0001001,2]
[406015634,1771557036438,-500.0,0.0001001,2]
[406015635,1771557036447,-20757.0,0.00010023,2]
[406015636,1771557036456,-1509.0,0.00010024,2]
[406015637,1771557036467,-1564.5029308,0.00010063,2]
[406015638,1771557036476,-541.30449257,0.00010064,2]
[406015639,1771557036486,-433.0,0.00010064,2]
[406015640,1771557036498,-378.3237531,0.00010089,2]
[406015641,1771557036508,-3842.81677436,0.00010103,2]
[406015642,1771557036518,-433.0,0.00010119,2]
[406015643,1771557036527,-166.77,0.00010132,2]
[406015644,1771557036537,-433.0,0.00010174,2]
[406015645,1771557036547,-151.0,0.00010192,2]
[406015646,1771557036557,-1239.62244634,0.00010217,2]
[406015647,1771557036568,-151.0,0.00010228,2]
[406015648,1771557036577,-481.413592,0.00010228,2]
[406015649,1771557036587,-481.413592,0.00010228,2]
[406015650,1771557036596,-481.413592,0.00010228,2]
[406015651,1771557036606,-481.413596,0.00010228,2]
[406015652,1771557036615,-151.0,0.00010228,2]
[406015653,1771557036624,-151.0,0.00010228,2]
[406015654,1771557036633,-151.0,0.00010228,2]
[406015655,1771557036643,-151.0,0.00010228,2]
[406015656,1771557036653,-162.216819,0.00010228,2]
[406015657,1771557036663,-433.0,0.00010229,2]
[406015658,1771557036672,-919.0,0.00010261,2]
[406015659,1771557036682,-2453.0,0.00010261,2]
[406015660,1771557036691,-433.0,0.00010283,2]
[406015661,1771557036701,-500.0,0.00010284,2]
[406015662,1771557036711,-166.66,0.00010302,2]
[406015663,1771557036720,-1169.792,0.00010327,2]
[406015664,1771557036730,-1000.0,0.00010332,2]
[406015665,1771557036739,-446.20108577,0.00010338,2]
[406015666,1771557036749,-283.22604431,0.00010344,2]
[406015667,1771557036759,-5011.69533454,0.00010348,2]
[406015668,1771557036769,-150.0,0.00010406,2]
[406015669,1771557036778,-150.0,0.00010406,2]
[406015670,1771557036788,-150.0,0.00010406,2]
[406015671,1771557036797,-179.0,0.00010406,2]
[406015672,1771557036807,-1026.61,0.00010443,2]
[406015673,1771557036817,-389.0,0.00010474,2]
[406015674,1771557036826,-166.77,0.00010504,2]
[406015675,1771557036836,-389.0,0.00010527,2]
[406015676,1771557036846,-1536.04360649,0.00010533,2]
[406015677,1771557036855,-500.0,0.00010558,2]
[406015678,1771557036868,-210.63,0.000106,2]
[406015679,1771557036878,-166.66,0.00010611,2]
[406015680,1771557036887,-378.0,0.00010641,2]
[406015681,1771557036897,-150.0,0.00010688,12]
[406015682,1771557036906,-150.0,0.00010688,12]
[406015683,1771557036916,-263.0,0.00010688,12]
[406015684,1771557036925,-247.0,0.00010709,2]
[406015685,1771557036935,-8152.7561384,0.0001071,2]
[406015686,1771557036945,-1000.0,0.00010755,2]
[406015687,1771557036954,-500.0,0.00010832,2]
[406015688,1771557036964,-150.75,0.00010879,2]
[406015689,1771557036973,-968.95560229,0.000109,2]
[406015690,1771557036982,-166.66,0.00010921,2]
[406015691,1771557036991,-200.0,0.00010959,2]
[406015692,1771557037001,-200.0,0.00010959,2]
[406015693,1771557037010,-200.0,0.00010959,2]
[406015694,1771557037020,-200.0,0.00010959,2]
[406015695,1771557037029,-166.66,0.00010959,2]
[406015696,1771557037039,-151.0,0.00010959,2]
[406015697,1771557037048,-151.0,0.00010959,2]
[406015698,1771557037057,-151.0,0.00010959,2]
[406015699,1771557037067,-153.261733,0.00010959,2]
[406015700,1771557037076,-151.0,0.00010959,2]
[406015701,1771557037086,-151.0,0.00010959,2]
[406015702,1771557037095,-151.0,0.00010959,2]
[406015703,1771557037104,-151.0,0.00010959,2]
[406015704,1771557037114,-151.0,0.00010959,2]
[406015705,1771557037124,-150.0,0.00010959,2]
[406015706,1771557037134,-968.95560222,0.00011049,2]
[406015707,1771557037145,-166.66,0.00011068,2]
[406015708,1771557037155,-1592.87721993,0.00011081,2]
[406015709,1771557037164,-568.94743276,0.00011099,2]
[406015710,1771557037174,-24852.75890846,0.00011099,2]
[406015711,1771557037184,-24852.75890843,0.00011099,2]
[406015712,1771557037194,-500.0,0.00011105,2]
[406015713,1771557037203,-400.0,0.00011113,12]
[406015714,1771557037213,-400.0,0.00011113,12]
[406015715,1771557037223,-400.0,0.00011113,12]
[406015716,1771557037233,-400.0,0.00011113,12]
[406015717,1771557037242,-288.0,0.00011113,12]
[406015718,1771557037252,-1819.1257828,0.00011157,2]
[406015719,1771557037262,-166.66,0.00011178,2]
[406015720,1771557037271,-150.0,0.00011198,7]
[406015721,1771557037281,-1155.91,0.00011233,2]
[406015722,1771557037291,-166.66,0.00011288,2]
[406015723,1771557037300,-282.91,0.00011306,2]
[406015724,1771557037310,-150.0,0.00011372,12]
[406015725,1771557037319,-150.0,0.00011372,12]
[406015726,1771557037329,-150.0,0.00011372,12]
[406015727,1771557037338,-500.0,0.00011379,2]
[406015728,1771557037347,-389.0,0.00011382,2]
[406015729,1771557037357,-166.66,0.00011397,2]
[406015730,1771557037366,-381.0,0.00011407,2]
[406015731,1771557037375,-257.05,0.00011413,2]
[406015732,1771557037385,-193.0,0.00011432,2]
[406015733,1771557037394,-150.0,0.00011437,12]
[406015734,1771557037403,-150.0,0.00011437,12]
[406015735,1771557037413,-292.0,0.00011437,12]
[406015736,1771557037422,-24852.75890843,0.00011457,2]
[406015737,1771557037432,-1026.61,0.00011487,2]
[406015738,1771557037441,-166.66,0.00011507,2]
[406015739,1771557037451,-1651.81367706,0.00011629,2]
[406015740,1771557037460,-500.0,0.00011653,2]
[406015741,1771557037469,-2751.39,0.00011674,2]
[406015742,1771557037478,-568.9474327,0.00011766,2]
[406015743,1771557037489,-1000.0,0.0001183,2]
[406015744,1771557037502,-500.0,0.00011927,2]
[406015745,1771557037511,-150.75,0.00012062,2]
[406015746,1771557037520,-1712.93078312,0.00012177,2]
[406015747,1771557037530,-500.0,0.00012201,2]
[406015748,1771557037540,-150.0,0.00012209,12]
[406015749,1771557037549,-150.0,0.00012209,12]
[406015750,1771557037559,-279.0,0.00012209,12]
[406015751,1771557037569,-24852.75890843,0.00012377,2]
[406015752,1771557037578,-500.0,0.00012475,2]
[406015753,1771557037589,-1026.61,0.00012531,2]
[406015754,1771557037598,-568.9474327,0.00012533,2]
[406015755,1771557037607,-378.0,0.00012652,2]
[406015756,1771557037616,-378.0,0.00012696,2]
[406015757,1771557037626,-1776.30922209,0.00012725,2]
[406015758,1771557037635,-500.0,0.00012749,2]
[406015759,1771557037644,-261.0,0.00012755,2]
[406015760,1771557037653,-355.184081,0.00012779,2]
[406015761,1771557037663,-1182.590847,0.00012779,2]
[406015762,1771557037672,-261.0,0.00012783,2]
[406015763,1771557037681,-261.0,0.00012816,2]
[406015764,1771557037691,-261.0,0.0001286,2]
[406015765,1771557037700,-261.0,0.00012861,2]
[406015766,1771557037709,-261.0,0.00012891,2]
[406015767,1771557037718,-261.0,0.00012891,2]
[406015768,1771557037727,-763.1,0.00012893,2]
[406015769,1771557037737,-150.99,0.00012893,2]
[406015770,1771557037746,-346.99,0.00012893,2]
[406015771,1771557037755,-150.99,0.00012893,2]
[406015772,1771557037764,-2106.71,0.00012893,2]
[406015773,1771557037775,-9999.99,0.00012893,2]
[406015774,1771557037785,-299.99,0.00012893,2]
[406015775,1771557037794,-9999.99,0.00012893,2]
[406015776,1771557037804,-9999.99,0.00012893,2]
[406015777,1771557037813,-14645.11,0.00012893,2]
[406015778,1771557037823,-4999.99,0.00012893,2]
[406015779,1771557037833,-999.99,0.00012893,2]
[406015780,1771557037843,-389.0,0.00012897,2]
[406015781,1771557037852,-164.5,0.000129,2]
[406015782,1771557037862,-261.0,0.00012904,2]
[406015783,1771557037871,-1000.0,0.00012905,2]
[406015784,1771557037881,-261.0,0.00012926,2]
[406015785,1771557037890,-261.0,0.00012928,2]
[406015786,1771557037900,-261.0,0.00012942,2]
[406015787,1771557037909,-261.0,0.00012944,2]
[406015788,1771557037918,-261.0,0.00012954,2]
[406015789,1771557037927,-261.0,0.00012984,2]
[406015790,1771557037937,-261.0,0.00012998,2]
[406015791,1771557037946,-747.01620488,0.00013,15]
[406015792,1771557037955,-500.0,0.00013,2]
[406015793,1771557037965,-500.0,0.00013,2]
[406015794,1771557037975,-500.0,0.00013,2]
[406015795,1771557037984,-503.83434134,0.00013,2]
[406015796,1771557037993,-500.0,0.00013,2]
[406015797,1771557038002,-500.0,0.00013,2]
[406015798,1771557038012,-500.0,0.00013,2]
[406015799,1771557038021,-500.0,0.00013,2]
[406015800,1771557038031,-500.0,0.00013,2]
[406015801,1771557038041,-655.244832,0.00013,2]
[406015802,1771557038050,-500.0,0.00013,2]
[406015803,1771557038059,-500.0,0.00013,2]
[406015804,1771557038069,-500.0,0.00013,2]
[406015805,1771557038079,-500.0,0.00013,2]
[406015806,1771557038088,-500.0,0.00013,2]
[406015807,1771557038097,-500.0,0.00013,2]
[406015808,1771557038106,-500.0,0.00013,2]
[406015809,1771557038116,-500.0,0.00013,2]
[406015810,1771557038126,-500.0,0.00013,2]
[406015811,1771557038136,-507.70307174,0.00013,2]
[406015812,1771557038145,-502.76700379,0.00013,2]
[406015813,1771557038155,-261.0,0.00013007,2]
[406015814,1771557038164,-261.0,0.00013022,2]
[406015815,1771557038173,-500.0,0.00013023,2]
[406015816,1771557038183,-261.0,0.00013053,2]
[406015817,1771557038192,-261.0,0.0001306,2]
[406015818,1771557038201,-261.0,0.00013067,2]
[406015819,1771557038210,-261.0,0.00013073,2]
[406015820,1771557038219,-261.0,0.00013165,2]
[406015821,1771557038229,-261.0,0.00013201,2]
[406015822,1771557038238,-261.0,0.00013224,2]
[406015823,1771557038247,-261.0,0.00013244,2]
[406015824,1771557038257,-919.0,0.00013261,2]
[406015825,1771557038266,-2453.0,0.00013261,2]
[406015826,1771557038276,-1842.03266331,0.00013273,2]
[406015827,1771557038285,-500.0,0.00013297,2]
[406015828,1771557038295,-24852.75890843,0.00013298,2]
[406015829,1771557038309,-568.9474327,0.00013299,2]
[406015830,1771557038319,-3240.0,0.00013425,2]
[406015831,1771557038328,-301.80668548,0.00013571,2]
[406015832,1771557038338,-173.70690193,0.00013574,2]
[406015833,1771557038348,-160.0,0.00013574,2]
[406015834,1771557038358,-615.04647359,0.00013698,2]
[406015835,1771557038372,-500.0,0.00013699,2]
[406015836,1771557038382,-500.0,0.00013699,2]
[406015837,1771557038391,-500.0,0.00013699,2]
[406015838,1771557038401,-500.0,0.00013699,2]
[406015839,1771557038410,-500.0,0.00013699,2]
[406015840,1771557038419,-200.0,0.00013699,2]
[406015841,1771557038429,-1000.0,0.00013699,2]
[406015842,1771557038438,-151.0,0.00013699,2]
[406015843,1771557038447,-151.0,0.00013699,2]
[406015844,1771557038456,-151.0,0.00013699,2]
[406015845,1771557038466,-151.0,0.00013699,2]
[406015846,1771557038476,-151.0,0.00013699,2]
[406015847,1771557038486,-151.0,0.00013699,2]
[406015849,1771557038501,-151.0,0.00013699,2]
[406015851,1771557038511,-151.0,0.00013699,2]
[406015853,1771557038521,-151.0,0.00013699,2]
[406015855,1771557038531,-151.0,0.00013699,2]
[406015856,1771557038541,-151.0,0.00013699,2]
[406015857,1771557038551,-153.152232,0.00013699,2]
[406015858,1771557038562,-263.308796,0.00013699,2]
[406015859,1771557038572,-263.308796,0.00013699,2]
[406015860,1771557038582,-263.308796,0.00013699,2]
[406015861,1771557038592,-263.308796,0.00013699,2]
[406015862,1771557038602,-263.308796,0.00013699,2]
[406015863,1771557038612,-263.308796,0.00013699,2]
[406015864,1771557039043,-263.308796,0.00013699,2]
[406015865,1771557039053,-263.308796,0.00013699,2]
[406015866,1771557039062,-263.308796,0.00013699,2]
[406015867,1771557039071,-263.308796,0.00013699,2]
[406015868,1771557039080,-263.308796,0.00013699,2]
[406015869,1771557039089,-263.308796,0.00013699,2]
[406015870,1771557039099,-263.308796,0.00013699,2]
[406015871,1771557039108,-263.308796,0.00013699,2]
[406015872,1771557039118,-263.308796,0.00013699,2]
[406015873,1771557039127,-263.308796,0.00013699,2]
[406015874,1771557039137,-263.308796,0.00013699,2]
[406015875,1771557039146,-263.308796,0.00013699,2]
[406015876,1771557039155,-263.308796,0.00013699,2]
[406015877,1771557039164,-263.308802,0.00013699,2]
[406015878,1771557039173,-3678.36,0.000137,2]
[406015879,1771557039183,-3678.36,0.000137,2]
[406015880,1771557039192,-150.75,0.00013757,2]
[406015881,1771557039202,-1910.18787185,0.00013821,2]
[406015882,1771557039212,-389.0,0.00013856,2]
[406015883,1771557039221,-500.0,0.00014,2]
[406015884,1771557039231,-500.0,0.00014,2]
[406015885,1771557039241,-500.0,0.00014,2]
[406015886,1771557039250,-500.0,0.00014,2]
[406015887,1771557039259,-500.0,0.00014,2]
[406015888,1771557039271,-500.0,0.00014,2]
[406015889,1771557039280,-500.0,0.00014,2]
[406015890,1771557039289,-500.0,0.00014,2]
[406015891,1771557039299,-500.0,0.00014,2]
[406015892,1771557039308,-500.0,0.00014,2]
[406015893,1771557039318,-500.0,0.00014,2]